bitfinex/quotes_BTCUSD_20220109
["timestamp","ask_amount","ask_price","bid_price","bid_amount"]
[1641713190291,0.24,41873.0,41872.0,0.3993345]
[1641713191495,0.24,41873.0,41872.0,0.0154205]
[1641713192142,0.24,41873.0,41872.0,0.0004205]
[1641713192339,0.24,41873.0,41872.0,0.0144205]
[1641713194239,0.24,41873.0,41872.0,0.0154205]
[1641713195042,0.24,41873.0,41872.0,0.3993345]
[1641713196089,0.24,41873.0,41872.0,0.3843345]
[1641713196289,0.24,41873.0,41872.0,0.3973345]
[1641713196892,0.24,41873.0,41872.0,0.0134205]
[1641713197290,0.24,41873.0,41872.0,0.013841]
[1641713197493,0.24,41873.0,41872.0,0.0004205]
[1641713197990,0.24,41873.0,41872.0,0.000841]
[1641713198389,0.24,41873.0,41872.0,0.0114205]
[1641713199543,0.24,41873.0,41872.0,0.0004205]
[1641713200147,0.9995795,41872.0,41871.0,0.35830779]
[1641713200946,0.9995795,41872.0,41871.0,0.23887743]
[1641713201549,0.9995795,41872.0,41871.0,0.17915943]
[1641713202447,0.9995795,41872.0,41871.0,0.19815943]
[1641713203596,0.9995795,41872.0,41871.0,0.17915943]
[1641713204398,0.9995795,41872.0,41871.0,0.19615943]
[1641713204797,0.9995795,41872.0,41871.0,0.58007343]
[1641713205597,0.9995795,41872.0,41871.0,0.56307343]
[1641713206001,0.9995795,41872.0,41871.0,0.17915943]
[1641713206497,0.9995795,41872.0,41871.0,0.19815943]
[1641713207542,0.9995795,41872.0,41871.0,0.17915943]
[1641713208344,0.9995795,41872.0,41871.0,0.19515943]
[1641713209545,0.9995795,41872.0,41871.0,0.17915943]
[1641713210348,0.9995795,41872.0,41871.0,0.19215943]
[1641713211593,0.9995795,41872.0,41871.0,0.17915943]
[1641713212392,0.9995795,41872.0,41871.0,0.19515943]
[1641713212795,0.9995795,41872.0,41871.0,0.57907343]
[1641713213594,0.9995795,41872.0,41871.0,0.56307343]
[1641713213994,0.9995795,41872.0,41871.0,0.68249943]
[1641713214442,0.9995795,41872.0,41871.0,0.69549943]
[1641713215645,0.9995795,41872.0,41871.0,0.68249943]
[1641713216242,0.9995795,41872.0,41871.0,0.69449943]
[1641713217643,0.9995795,41872.0,41871.0,0.68249943]
[1641713218296,0.9995795,41872.0,41871.0,0.69449943]
[1641713219497,0.9995795,41872.0,41871.0,0.68249943]
[1641713220301,0.9995795,41872.0,41871.0,0.75349943]
[1641713220499,0.9995795,41872.0,41871.0,0.85349943]
[1641713221601,0.9995795,41872.0,41871.0,0.83249943]
[1641713222249,0.9995795,41872.0,41871.0,0.86649943]
[1641713223651,0.9995795,41872.0,41871.0,0.29858543]
[1641713224349,0.9995795,41872.0,41871.0,0.32458543]
[1641713224951,0.9995795,41872.0,41871.0,0.70849943]
[1641713225594,0.9995795,41872.0,41871.0,0.68249943]
[1641713226396,0.9995795,41872.0,41871.0,0.69849943]
[1641713226799,0.9995795,41872.0,41871.0,1.00582258]
[1641713227006,0.79960384,41872.0,41871.0,1.15582258]
[1641713227400,0.79960384,41872.0,41871.0,2.4250439]
[1641713228099,0.59960384,41872.0,41871.0,2.4250439]
[1641713228301,0.31735884,41872.0,41871.0,2.4460439]
[1641713228502,0.11735884,41872.0,41871.0,2.4460439]
[1641713228900,0.24,41873.0,41872.0,1.35064116]
[1641713229100,0.24,41873.0,41872.0,1.96068243]
[1641713230353,0.24,41873.0,41872.0,2.36761637]
[1641713230558,0.00042096,41880.0,41873.0,1.268]
[1641713230755,0.00042096,41880.0,41879.0,0.00126137]
[1641713230956,0.00042096,41880.0,41879.0,0.69318746]
[1641713231165,0.00042096,41880.0,41879.0,0.79318746]
[1641713231356,0.00656358,41889.0,41880.0,0.18007904]
[1641713231556,0.00656358,41889.0,41883.0,0.35328826]
[1641713231757,0.00656358,41889.0,41885.0,0.0597]
[1641713231958,0.00656358,41889.0,41886.0,0.11939767]
[1641713232159,0.37119478,41894.0,41886.0,0.05969867]
[1641713232656,0.37119478,41894.0,41885.0,0.0677]
[1641713232858,0.00656358,41886.0,41885.0,0.0677]
[1641713233109,0.00656358,41886.0,41885.0,0.008]
[1641713233509,0.00656358,41886.0,41883.0,0.119396]
[1641713234410,0.34775823,41890.0,41884.0,0.059706]
[1641713234611,0.34775823,41890.0,41885.0,0.059706]
[1641713235010,0.059707,41889.0,41885.0,0.059706]
[1641713235311,0.00042937,41888.0,41883.0,0.022]
[1641713235512,0.00042937,41888.0,41885.0,0.059705]
[1641713236411,0.00042895,41887.0,41885.0,0.062705]
[1641713236710,0.00042895,41887.0,41886.0,0.059703]
[1641713238749,0.00042895,41887.0,41886.0,0.33146271]
[1641713238947,0.00042895,41887.0,41886.0,0.71537671]
[1641713239148,0.00042895,41887.0,41886.0,0.443617]
[1641713239948,0.24039131,41887.0,41886.0,0.443617]
[1641713240348,0.24039131,41887.0,41886.0,0.457617]
[1641713240998,0.24079179,41887.0,41886.0,0.74166056]
[1641713241197,0.24040048,41887.0,41886.0,0.74166056]
[1641713241597,0.24040048,41887.0,41886.0,0.72766056]
[1641713242000,0.24040048,41887.0,41886.0,1.08664914]
[1641713242400,0.24040048,41887.0,41886.0,1.12864914]
[1641713243202,0.24042043,41887.0,41886.0,1.12864914]
[1641713243604,0.24042043,41887.0,41886.0,1.08664914]
[1641713244448,0.24042043,41887.0,41886.0,1.11264914]
[1641713245649,0.24042043,41887.0,41886.0,1.08664914]
[1641713246448,0.24042043,41887.0,41886.0,1.12164914]
[1641713247252,0.24042043,41887.0,41886.0,0.76266056]
[1641713247652,0.24041962,41887.0,41886.0,0.72766056]
[1641713248597,0.24041962,41887.0,41886.0,0.75966056]
[1641713248797,0.24041963,41887.0,41886.0,0.75966056]
[1641713249199,0.24041963,41887.0,41886.0,0.475617]
[1641713249597,0.24041963,41887.0,41886.0,0.443617]
[1641713250299,0.24041963,41887.0,41886.0,0.059703]
[1641713250499,0.24041963,41887.0,41886.0,0.02]
[1641713251703,0.24041963,41887.0,41882.0,0.059709]
[1641713252158,0.24041966,41887.0,41882.0,0.059709]
[1641713252357,0.24041966,41887.0,41882.0,0.114709]
[1641713252760,0.24041966,41887.0,41883.0,0.059707]
[1641713252958,0.24041966,41887.0,41882.0,0.114708]
[1641713253156,0.00041964,41885.0,41882.0,0.114708]
[1641713253657,0.00041964,41885.0,41882.0,0.059708]
[1641713253857,0.00041964,41885.0,41883.0,0.059707]
[1641713254058,0.00041964,41885.0,41884.0,0.05970477]
[1641713254262,0.00041963,41885.0,41884.0,0.44361877]
[1641713255057,0.00041963,41885.0,41884.0,0.70799873]
[1641713255457,0.00041964,41885.0,41884.0,0.44361877]
[1641713255699,0.00041964,41885.0,41884.0,0.70529662]
[1641713256598,0.00041964,41885.0,41884.0,0.71829662]
[1641713257399,0.00041964,41885.0,41884.0,0.45661877]
[1641713257599,0.00041964,41885.0,41884.0,0.44361877]
[1641713258500,0.00041964,41885.0,41884.0,0.45561877]
[1641713259750,0.00041964,41885.0,41884.0,0.44361877]
[1641713260449,0.00041964,41885.0,41884.0,0.46261877]
[1641713261051,0.00041964,41885.0,41884.0,0.019]
[1641713261550,0.00041964,41885.0,41883.0,0.64919387]
[1641713261753,0.00041964,41885.0,41884.0,0.383914]
[1641713261953,0.24,41887.0,41884.0,0.383914]
[1641713261954,0.24,41887.0,41885.0,0.1796594]
[1641713262254,0.24,41887.0,41886.0,0.383914]
[1641713262652,0.24,41887.0,41885.0,0.17908653]
[1641713262852,0.24,41887.0,41886.0,0.383914]
[1641713263501,0.24,41887.0,41885.0,0.11938753]
[1641713263702,0.85515779,41887.0,41882.0,0.059708]
[1641713263901,0.85515779,41887.0,41874.0,0.04903781]
[1641713263902,0.85515779,41887.0,41874.0,0.00123781]
[1641713264102,0.28486704,41878.0,41876.0,0.119422]
[1641713264302,0.28486704,41878.0,41877.0,0.383914]
[1641713264602,0.28486704,41878.0,41874.0,0.073]
[1641713264806,0.00126015,41875.0,41874.0,0.073]
[1641713265201,0.36860144,41875.0,41874.0,0.073]
[1641713265401,0.42833344,41875.0,41874.0,0.073]
[1641713265602,0.42833344,41875.0,41872.0,0.006]
[1641713265803,0.36860144,41875.0,41872.0,0.006]
[1641713266004,0.00124914,41873.0,41872.0,0.006]
[1641713266203,0.79388397,41873.0,41872.0,0.006]
[1641713266503,0.79388397,41873.0,41872.0,0.024]
[1641713266952,0.46336397,41873.0,41872.0,0.0001]
[1641713267357,0.12072914,41873.0,41872.0,0.0001]
[1641713267551,0.00124914,41873.0,41872.0,0.00043101]
[1641713267950,0.45274133,41877.0,41872.0,0.00043101]
[1641713268552,0.51246633,41877.0,41874.0,0.00043099]
[1641713269653,0.51246633,41877.0,41875.0,0.00043098]
[1641713269861,0.059725,41877.0,41875.0,0.00043098]
[1641713270453,0.10847135,41877.0,41875.0,0.00043098]
[1641713271093,0.051,41877.0,41875.0,0.00085226]
[1641713271294,0.051,41877.0,41875.0,0.00042128]
[1641713271695,0.291,41877.0,41875.0,0.00042128]
[1641713271895,0.24,41877.0,41875.0,0.00042128]
[1641713272496,0.24,41877.0,41875.0,0.02242128]
[1641713273594,0.299726,41877.0,41875.0,0.02242128]
[1641713273797,0.299726,41877.0,41875.0,0.00042128]
[1641713274449,0.25,41877.0,41875.0,0.01142128]
[1641713275654,0.24,41877.0,41875.0,0.0004215]
[1641713275855,0.299726,41877.0,41875.0,0.0004215]
[1641713276054,0.24,41877.0,41875.0,0.0004215]
[1641713276553,0.255,41877.0,41875.0,0.0004215]
[1641713276953,0.31282034,41876.0,41875.0,0.0004215]
[1641713278397,0.32382034,41876.0,41875.0,0.0004215]
[1641713279298,0.011,41876.0,41875.0,0.0004215]
[1641713279699,0.24,41877.0,41875.0,0.0004215]
[1641713280501,0.251,41877.0,41875.0,0.0004215]
[1641713281099,0.251,41877.0,41875.0,0.00042149]
[1641713281700,0.24,41877.0,41875.0,0.00042149]
[1641713282549,0.254,41877.0,41875.0,0.00042149]
[1641713283649,0.24,41877.0,41875.0,0.00042149]
[1641713284449,0.25,41877.0,41875.0,0.01642149]
[1641713285897,0.24,41877.0,41875.0,0.00042149]
[1641713286497,0.25,41877.0,41875.0,0.01442149]
[1641713287697,0.24,41877.0,41875.0,0.00042149]
[1641713288400,0.25,41877.0,41875.0,0.00942149]
[1641713289746,0.24,41877.0,41875.0,0.00084298]
[1641713289949,0.24,41877.0,41875.0,0.00042149]
[1641713290451,0.252,41877.0,41875.0,0.00042149]
[1641713290852,0.252,41877.0,41875.0,0.00084298]
[1641713291050,0.252,41877.0,41875.0,0.00042149]
[1641713291655,0.24,41877.0,41875.0,0.00042149]
[1641713292455,0.25,41877.0,41875.0,0.01742149]
[1641713293099,0.25,41877.0,41875.0,0.01784298]
[1641713293295,0.25,41877.0,41875.0,0.01742149]
[1641713293699,0.24,41877.0,41875.0,0.00042149]
[1641713294497,0.25,41877.0,41875.0,0.01342149]
[1641713295800,0.24,41877.0,41875.0,0.00042149]
[1641713296501,0.245,41877.0,41875.0,0.03042149]
[1641713297644,0.24,41877.0,41875.0,0.00042149]
[1641713298446,0.247,41877.0,41875.0,0.03142149]
[1641713299649,0.24,41877.0,41875.0,0.00042149]
[1641713300450,0.244,41877.0,41875.0,0.03042149]
[1641713301799,0.24,41877.0,41875.0,0.00042149]
[1641713302598,0.248,41877.0,41875.0,0.02542149]
[1641713302798,0.248,41877.0,41875.0,0.08513791]
[1641713303403,0.248,41877.0,41875.0,0.38234874]
[1641713303599,0.248,41877.0,41876.0,0.2917316]
[1641713303807,0.24,41877.0,41876.0,0.72685756]
[1641713303999,0.0603406,41877.0,41876.0,0.77685756]
[1641713304200,0.00656358,41881.0,41877.0,0.45]
[1641713304461,0.00656358,41881.0,41880.0,0.63518862]
[1641713304656,0.00656358,41881.0,41880.0,2.84235914]
[1641713304954,0.00656358,41881.0,41880.0,2.59235914]
[1641713305253,0.00656358,41881.0,41880.0,2.59278059]
[1641713305655,6.358e-05,41881.0,41880.0,2.59278059]
[1641713306256,0.00041654,41890.0,41880.0,2.59278059]
[1641713306456,0.00041654,41890.0,41886.0,0.17907328]
[1641713306658,0.00041654,41890.0,41888.0,0.32574373]
[1641713306856,0.00041654,41890.0,41889.0,0.66121061]
[1641713307460,0.00041672,41890.0,41889.0,0.66121061]
[1641713308701,0.00741671,41890.0,41889.0,0.67645684]
[1641713309699,0.00041671,41890.0,41889.0,0.66245684]
[1641713310501,0.00041671,41890.0,41889.0,0.67645684]
[1641713311704,0.00041671,41890.0,41889.0,0.66245684]
[1641713311957,0.24041671,41890.0,41889.0,0.66245684]
[1641713312359,0.24041671,41890.0,41889.0,0.66121061]
[1641713312563,0.24041671,41890.0,41889.0,0.67521061]
[1641713313761,0.24041671,41890.0,41889.0,0.66121061]
[1641713314161,0.24083342,41890.0,41889.0,0.66121061]
[1641713314361,0.24041671,41890.0,41889.0,0.66121061]
[1641713314562,0.24041671,41890.0,41889.0,0.67421061]
[1641713315367,0.24041902,41890.0,41889.0,0.67421061]
[1641713315695,0.24041902,41890.0,41889.0,0.66121061]
[1641713316501,0.24041902,41890.0,41889.0,0.67521061]
[1641713317597,0.24041897,41890.0,41889.0,0.67521061]
[1641713318600,0.24041628,41890.0,41889.0,0.70621061]
[1641713319652,0.24041628,41890.0,41889.0,0.76590061]
[1641713319848,0.24041628,41890.0,41889.0,0.66121061]
[1641713320449,0.24041628,41890.0,41889.0,0.411914]
[1641713320652,0.24041628,41890.0,41889.0,0.028]
[1641713321749,0.24041628,41890.0,41885.0,0.2887]
[1641713321949,0.24041641,41890.0,41885.0,0.059706]
[1641713322552,0.24041641,41890.0,41885.0,0.113706]
[1641713322750,0.30012041,41890.0,41885.0,0.113706]
[1641713323203,0.3001207,41890.0,41885.0,0.113706]
[1641713323803,0.3001207,41890.0,41886.0,0.059704]
[1641713324405,0.3001207,41890.0,41885.0,0.059706]
[1641713324605,0.3001207,41890.0,41886.0,0.046]
[1641713325306,0.30012071,41890.0,41886.0,0.046]
[1641713325906,0.30012071,41890.0,41885.0,0.059706]
[1641713326305,0.30012069,41890.0,41885.0,0.059706]
[1641713326505,0.30012069,41890.0,41885.0,0.112706]
[1641713326709,0.30012069,41890.0,41885.0,0.053]
[1641713327555,0.30012067,41890.0,41885.0,0.053]
[1641713327756,0.30012067,41890.0,41883.0,0.26877235]
[1641713327958,0.30012067,41890.0,41884.0,0.059706]
[1641713328358,0.30012067,41890.0,41885.0,0.059706]
[1641713328558,0.30012066,41890.0,41885.0,0.059706]
[1641713329659,0.30012067,41890.0,41885.0,0.059706]
[1641713330461,0.30012067,41890.0,41885.0,0.121706]
[1641713331699,0.30012067,41890.0,41885.0,0.059706]
[1641713332102,0.24041667,41890.0,41887.0,0.059699]
[1641713332299,0.24041667,41890.0,41888.0,0.383914]
[1641713332700,0.24041667,41890.0,41887.0,0.059699]
[1641713332924,0.2404167,41890.0,41888.0,0.383914]
[1641713333503,0.2404167,41890.0,41888.0,0.059699]
[1641713333902,0.2404167,41890.0,41887.0,0.059699]
[1641713334347,0.2404167,41890.0,41886.0,0.059704]
[1641713334551,0.3001197,41890.0,41887.0,0.002]
[1641713335247,0.30011969,41890.0,41887.0,0.002]
[1641713335847,0.30011969,41890.0,41886.0,0.119408]
[1641713336050,0.24041669,41890.0,41887.0,0.119404]
[1641713336251,0.24083338,41890.0,41888.0,0.383914]
[1641713336449,0.24041669,41890.0,41888.0,0.383914]
[1641713337251,0.24041669,41890.0,41888.0,0.44361085]
[1641713337452,0.2404167,41890.0,41888.0,0.50330985]
[1641713338699,0.2404167,41890.0,41889.0,0.25831913]
[1641713338899,0.2404167,41890.0,41887.0,0.059697]
[1641713338900,0.2404167,41890.0,41886.0,0.119394]
[1641713339103,0.2404167,41890.0,41885.0,0.059705]
[1641713339302,0.24105099,41887.0,41885.0,0.059705]
[1641713339604,0.24105099,41887.0,41881.0,0.301]
[1641713339800,0.24105099,41887.0,41882.0,0.05970777]
[1641713340301,0.30075899,41887.0,41880.0,0.00042144]
[1641713340500,0.27766608,41886.0,41882.0,0.017]
[1641713340701,0.30447272,41886.0,41882.0,0.017]
[1641713340902,0.24105099,41887.0,41882.0,0.076709]
[1641713341501,0.24105099,41887.0,41882.0,0.017]
[1641713341502,0.059709,41886.0,41882.0,0.017]
[1641713341702,0.059709,41886.0,41881.0,0.059711]
[1641713342159,0.059709,41886.0,41880.0,0.00042144]
[1641713342356,0.059709,41886.0,41881.0,0.383914]
[1641713342557,0.059709,41886.0,41882.0,0.059709]
[1641713342757,0.059709,41886.0,41881.0,0.01]
[1641713342959,0.059709,41886.0,41882.0,0.38103322]
[1641713343659,0.30012058,41890.0,41883.0,0.059708]
[1641713344057,0.30012061,41890.0,41883.0,0.059708]
[1641713344661,0.30012061,41890.0,41883.0,0.065708]
[1641713345061,0.30012066,41890.0,41883.0,0.065708]
[1641713345701,0.30012066,41890.0,41884.0,0.059706]
[1641713345902,0.30012066,41890.0,41885.0,0.05970289]
[1641713346102,0.30012066,41890.0,41886.0,0.059704]
[1641713346703,0.24041666,41890.0,41887.0,0.059703]
[1641713346907,0.24041666,41890.0,41887.0,0.11940361]
[1641713347103,0.24041666,41890.0,41887.0,0.11940261]
[1641713347305,0.24041666,41890.0,41887.0,0.059702]
[1641713347503,0.2404167,41890.0,41887.0,0.059702]
[1641713348304,0.2404167,41890.0,41888.0,0.11939063]
[1641713348706,0.24041669,41890.0,41888.0,0.11939063]
[1641713349351,0.24041669,41890.0,41889.0,0.383897]
[1641713349552,0.2404167,41890.0,41889.0,0.383897]
[1641713350554,0.2404167,41890.0,41889.0,0.389897]
[1641713350752,0.24041671,41890.0,41889.0,0.389897]
[1641713351958,0.24041671,41890.0,41889.0,0.383897]
[1641713352358,0.24041671,41890.0,41889.0,0.443588]
[1641713352559,0.24041671,41890.0,41889.0,0.389897]
[1641713352757,0.24083342,41890.0,41889.0,0.389897]
[1641713353802,0.24041671,41890.0,41889.0,0.383897]
[1641713354703,0.24041671,41890.0,41889.0,0.406897]
[1641713355904,0.24041671,41890.0,41889.0,0.383897]
[1641713356503,0.24041671,41890.0,41889.0,0.389897]
[1641713356959,0.24041671,41890.0,41889.0,0.006]
[1641713357356,0.24083135,41890.0,41889.0,0.006]
[1641713357558,0.24041464,41890.0,41889.0,0.006]
[1641713357960,0.24041464,41890.0,41887.0,0.059703]
[1641713358559,0.30011762,41890.0,41887.0,0.070703]
[1641713358959,0.24041462,41890.0,41887.0,0.070703]
[1641713359360,0.24041462,41890.0,41887.0,0.130405]
[1641713359560,0.24041462,41890.0,41888.0,0.0597]
[1641713360604,0.24041462,41890.0,41888.0,0.0687]
[1641713360803,0.24041679,41890.0,41888.0,0.0687]
[1641713361806,0.24041679,41890.0,41888.0,0.0597]
[1641713362005,0.24041679,41890.0,41888.0,0.11939751]
[1641713362610,0.24041679,41890.0,41889.0,0.65841374]
[1641713364009,0.2404168,41890.0,41889.0,0.65841374]
[1641713364649,0.2404168,41890.0,41889.0,0.67141374]
[1641713365250,0.2404167,41890.0,41889.0,0.67141374]
[1641713365850,0.2404167,41890.0,41889.0,0.65841374]
[1641713366749,0.2404167,41890.0,41889.0,0.67241374]
[1641713367951,0.2404167,41890.0,41889.0,0.65841374]
[1641713368701,0.2404167,41890.0,41889.0,0.67341374]
[1641713369502,0.24083341,41890.0,41889.0,0.67341374]
[1641713369702,0.24041671,41890.0,41889.0,0.67341374]
[1641713369905,0.24041671,41890.0,41889.0,0.65841374]
[1641713370708,0.24041671,41890.0,41889.0,0.67141374]
[1641713371964,0.24041671,41890.0,41889.0,0.65841374]
[1641713372561,0.24041671,41890.0,41889.0,0.67241374]
[1641713373759,0.24041671,41890.0,41889.0,0.397897]
[1641713373960,0.24041671,41890.0,41887.0,0.119405]
[1641713374561,0.24041671,41890.0,41887.0,0.083702]
[1641713374961,0.24041671,41890.0,41887.0,0.14340258]
[1641713375162,0.65969638,41890.0,41887.0,0.024]
[1641713375610,0.71939938,41890.0,41887.0,0.024]
[1641713375813,0.71939938,41890.0,41881.0,0.41321]
[1641713376111,0.71939938,41890.0,41882.0,0.059709]
[1641713376112,0.23844401,41884.0,41882.0,0.059709]
[1641713376711,0.23844401,41884.0,41882.0,0.103709]
[1641713377612,0.23844401,41884.0,41882.0,0.22312544]
[1641713378012,0.23844401,41884.0,41882.0,0.17912544]
[1641713378613,0.23844401,41884.0,41882.0,0.18712544]
[1641713379662,0.29815601,41884.0,41882.0,0.008]
[1641713380063,0.29815601,41884.0,41881.0,0.059712]
[1641713380265,0.29815601,41884.0,41880.0,0.00042144]
[1641713380464,0.38624601,41884.0,41880.0,0.00084288]
[1641713380662,0.059717,41882.0,41881.0,0.006]
[1641713380863,0.06615,41882.0,41881.0,0.006]
[1641713381961,0.06615,41882.0,41880.0,0.00042144]
[1641713383610,0.06615,41882.0,41878.0,0.059716]
[1641713383809,0.059717,41882.0,41880.0,0.00042144]
[1641713385211,0.059717,41882.0,41879.0,0.059714]
[1641713386114,0.059717,41882.0,41878.0,0.05971414]
[1641713386712,0.059717,41882.0,41879.0,0.119428]
[1641713386954,0.23844401,41884.0,41879.0,0.059714]
[1641713387353,0.23844401,41884.0,41878.0,0.124419]
[1641713387853,0.23844401,41884.0,41878.0,0.119419]
[1641713388056,0.23844401,41884.0,41880.0,0.05971053]
[1641713388656,0.23844401,41884.0,41881.0,0.11942]
[1641713390055,0.29815601,41884.0,41881.0,0.11942]
[1641713390705,0.29815601,41884.0,41881.0,0.12042]
[1641713391311,0.29815601,41884.0,41881.0,0.06071]
[1641713391906,0.29815601,41884.0,41881.0,0.05971]
[1641713392507,0.29815601,41884.0,41880.0,0.059712]
[1641713392710,0.29815601,41884.0,41881.0,0.001]
[1641713392910,0.29815601,41884.0,41875.0,0.00042025]
[1641713392911,0.006433,41883.0,41875.0,0.00042025]
[1641713393109,0.29815601,41884.0,41875.0,0.00042025]
[1641713394111,0.29815601,41884.0,41877.0,0.059717]
[1641713394352,0.29815601,41884.0,41875.0,0.00042025]
[1641713394653,0.29815601,41884.0,41877.0,0.007]
[1641713395655,0.29815601,41884.0,41879.0,0.119428]
[1641713396257,0.23844401,41884.0,41875.0,0.05042025]
[1641713396657,0.23844401,41884.0,41879.0,0.179119]
[1641713396856,0.23844401,41884.0,41879.0,0.184119]
[1641713397057,0.23844401,41884.0,41881.0,0.059705]
[1641713397257,0.23844401,41884.0,41879.0,0.184114]
[1641713397457,0.23844401,41884.0,41879.0,0.124409]
[1641713398105,0.23844401,41884.0,41879.0,0.119409]
[1641713398307,0.23844401,41884.0,41882.0,0.059706]
[1641713400513,0.00041962,41885.0,41882.0,0.119413]
[1641713400812,0.00041962,41885.0,41882.0,0.122413]
[1641713401415,0.00041964,41885.0,41882.0,0.122413]
[1641713401854,0.00041964,41885.0,41882.0,0.119413]
[1641713402256,0.00041964,41885.0,41883.0,0.05970218]
[1641713402456,0.00041964,41885.0,41884.0,0.25865506]
[1641713403257,0.00041964,41885.0,41884.0,0.64255206]
[1641713403658,0.00041966,41885.0,41884.0,0.64255206]
[1641713404759,0.00041966,41885.0,41884.0,0.64655206]
[1641713405902,0.00041966,41885.0,41884.0,0.64255206]
[1641713406501,0.00041966,41885.0,41884.0,0.383897]
[1641713406704,0.00041966,41885.0,41884.0,0.003]
[1641713408508,0.00041966,41885.0,41883.0,0.05970218]
[1641713408704,0.00041966,41885.0,41884.0,0.004]
[1641713409367,0.00316385,41885.0,41884.0,0.004]
[1641713409964,0.00316385,41885.0,41883.0,0.05970218]
[1641713410364,0.00316386,41885.0,41883.0,0.05970218]
[1641713410765,0.00316386,41885.0,41883.0,0.06570218]
[1641713411367,0.00316385,41885.0,41883.0,0.06570218]
[1641713411867,0.00316385,41885.0,41883.0,0.05970218]
[1641713412666,0.00316385,41885.0,41883.0,0.06570218]
[1641713413508,0.00316385,41885.0,41884.0,0.383897]
[1641713413705,0.00316385,41885.0,41883.0,0.06570218]
[1641713413905,0.00316385,41885.0,41884.0,0.383897]
[1641713414706,0.00316386,41885.0,41884.0,0.004]
[1641713416611,0.00316386,41885.0,41883.0,0.26888529]
[1641713416856,0.00179176,41885.0,41884.0,0.004]
[1641713417256,0.00316386,41885.0,41884.0,0.004]
[1641713418057,0.00316386,41885.0,41884.0,0.06370637]
[1641713418256,0.00316386,41885.0,41884.0,0.05970637]
[1641713418758,0.00316386,41885.0,41884.0,0.06370637]
[1641713420059,0.00316386,41885.0,41884.0,0.05970637]
[1641713420802,0.00316386,41885.0,41884.0,0.06370637]
[1641713421205,0.00358352,41885.0,41884.0,0.06370637]
[1641713421407,0.00316386,41885.0,41884.0,0.004]
[1641713422006,0.00316386,41885.0,41882.0,0.059706]
[1641713422407,0.00041966,41885.0,41882.0,0.059706]
[1641713422609,0.0013721,41884.0,41882.0,0.059706]
[1641713422810,0.0027442,41884.0,41882.0,0.068706]
[1641713423214,0.40673452,41883.0,41882.0,0.009]
[1641713423413,0.73074388,41883.0,41882.0,0.009]
[1641713423612,0.73201104,41883.0,41882.0,0.009]
[1641713424015,0.73201104,41883.0,41875.0,0.00042046]
[1641713424213,0.05972335,41882.0,41875.0,0.00042046]
[1641713424458,0.31149561,41876.0,41875.0,0.00042046]
[1641713424662,0.31149561,41876.0,41875.0,0.04242046]
[1641713425061,0.31149561,41876.0,41875.0,0.04284092]
[1641713425259,0.31149561,41876.0,41875.0,0.04242046]
[1641713425661,0.157266,41882.0,41875.0,0.04242046]
[1641713425662,0.119447,41880.0,41875.0,0.04242046]
[1641713425862,0.006,41882.0,41875.0,0.04242046]
[1641713426160,0.40800168,41883.0,41875.0,0.00042047]
[1641713426359,0.006433,41882.0,41875.0,0.00042047]
[1641713426561,0.059718,41880.0,41876.0,0.059718]
[1641713426764,0.32099592,41881.0,41875.0,0.03942047]
[1641713426959,0.32099592,41881.0,41875.0,0.09913947]
[1641713427162,0.32099592,41881.0,41875.0,0.09955993]
[1641713427362,0.32099592,41881.0,41875.0,0.09913946]
[1641713427562,0.38071192,41881.0,41877.0,0.05971483]
[1641713427862,0.0013721,41879.0,41875.0,0.09913946]
[1641713428106,0.0027442,41879.0,41876.0,0.059718]
[1641713428306,0.0027442,41879.0,41875.0,0.06013946]
[1641713428706,0.0127442,41879.0,41876.0,0.028]
[1641713429107,0.0724622,41879.0,41876.0,0.028]
[1641713430105,0.0624622,41879.0,41875.0,0.00042046]
[1641713430710,0.0624622,41879.0,41875.0,0.03542046]
[1641713431007,0.0704622,41879.0,41875.0,0.03542046]
[1641713431607,0.0704622,41879.0,41875.0,0.09514046]
[1641713431856,0.0704622,41879.0,41875.0,0.15485946]
[1641713432057,0.0624622,41879.0,41875.0,0.11985946]
[1641713432656,0.0624622,41879.0,41875.0,0.12027992]
[1641713432858,0.0704622,41879.0,41875.0,0.15385946]
[1641713433060,0.067718,41879.0,41875.0,0.15385946]
[1641713433261,0.0027442,41877.0,41875.0,0.15385946]
[1641713433759,0.0027442,41877.0,41875.0,0.03442046]
[1641713433958,0.0027442,41877.0,41875.0,0.00042046]
[1641713434764,0.059723,41876.0,41875.0,0.02442046]
[1641713435364,0.066156,41876.0,41875.0,0.02442046]
[1641713436005,0.066156,41876.0,41875.0,0.00084093]
[1641713436204,0.066156,41876.0,41875.0,0.00042047]
[1641713436803,0.079156,41876.0,41875.0,0.00042047]
[1641713438106,0.066156,41876.0,41875.0,0.00042047]
[1641713438610,0.0689002,41876.0,41875.0,0.00042047]
[1641713438810,0.0819002,41876.0,41875.0,0.00042047]
[1641713440262,0.0689002,41876.0,41875.0,0.00042047]
[1641713440861,0.0819002,41876.0,41875.0,0.00042047]
[1641713442062,0.0689002,41876.0,41875.0,0.00042047]
[1641713442265,0.38815071,41876.0,41875.0,0.00042047]
[1641713442464,0.43595071,41876.0,41875.0,0.00042047]
[1641713442864,0.44895071,41876.0,41875.0,0.00042047]
[1641713443106,1.24895071,41876.0,41875.0,0.00042047]
[1641713443306,1.59895071,41876.0,41875.0,0.00042047]
[1641713443610,2.31536071,41876.0,41875.0,0.00042047]
[1641713444106,2.30236071,41876.0,41875.0,0.00042047]
[1641713444507,0.11949591,41872.0,41868.0,0.000696]
[1641713444707,0.00127901,41869.0,41868.0,0.000696]
[1641713444906,0.3589572,41869.0,41868.0,0.000696]
[1641713445106,0.3603293,41869.0,41868.0,0.000696]
[1641713445311,0.3617014,41869.0,41868.0,0.000696]
[1641713445907,0.3617014,41869.0,41868.0,0.00111654]
[1641713446706,0.01045621,41869.0,41868.0,0.00111654]
[1641713446958,0.02545621,41869.0,41868.0,0.00111654]
[1641713447159,0.02545621,41869.0,41868.0,0.00111548]
[1641713447863,1.08508201,41869.0,41868.0,0.00111548]
[1641713448066,1.17008201,41869.0,41868.0,0.00111548]
[1641713448865,1.18808201,41869.0,41868.0,0.00111548]
[1641713449066,0.82845621,41869.0,41868.0,0.00111548]
[1641713449365,0.82845621,41869.0,41868.0,0.00110473]
[1641713449567,1.19602291,41869.0,41868.0,0.00110473]
[1641713449764,0.82845621,41869.0,41868.0,0.00110473]
[1641713449966,1.54486621,41869.0,41868.0,0.00110473]